bitfinex-derivatives/quotes_BTCF0:USTF0_20251208
["timestamp","ask_amount","ask_price","bid_price","bid_amount"]
[1765186085883,0.27781,92047.0,92046.0,0.004]
[1765186093100,0.33644784,92047.0,92046.0,0.004]
[1765186098491,0.27781,92047.0,92046.0,0.004]
[1765186101997,0.27781,92047.0,92046.0,0.06155]
[1765186103304,0.33644784,92047.0,92046.0,0.06155]
[1765186103697,0.33644784,92047.0,92046.0,0.0324]
[1765186104607,0.27781,92047.0,92046.0,0.0324]
[1765186104806,0.27781,92047.0,92046.0,0.004]
[1765186105413,0.33644784,92047.0,92046.0,0.004]
[1765186105614,0.33644784,92047.0,92046.0,0.0324]
[1765186105803,0.33644784,92047.0,92046.0,0.004]
[1765186107109,0.05865,92047.0,92046.0,0.06155]
[1765186109313,0.11728784,92047.0,92046.0,0.06155]
[1765186110218,0.05865,92047.0,92046.0,0.06155]
[1765186111105,0.0309,92047.0,92046.0,0.06155]
[1765186111306,0.05916,92047.0,92046.0,0.06155]
[1765186117224,0.11777831,92047.0,92046.0,0.06155]
[1765186117420,0.12864141,92047.0,92046.0,0.06155]
[1765186117620,0.05916,92047.0,92046.0,0.06155]
[1765186118226,0.11777587,92047.0,92046.0,0.06155]
[1765186118728,0.05916,92047.0,92046.0,0.06155]
[1765186119226,0.11777279,92047.0,92046.0,0.06155]
[1765186120029,0.05916,92047.0,92046.0,0.06155]
[1765186120320,0.1177727,92047.0,92046.0,0.06155]
[1765186121523,0.05916,92047.0,92046.0,0.06155]
[1765186121723,0.1177708,92047.0,92046.0,0.06155]
[1765186123230,0.05916,92047.0,92046.0,0.06155]
[1765186125931,0.05916,92047.0,92046.0,0.004]
[1765186126128,0.05916,92047.0,92046.0,0.06057]
[1765186137630,0.05916,92047.0,92046.0,0.004]
[1765186137938,0.1177708,92047.0,92046.0,0.004]
[1765186140652,0.05688,92031.0,92030.0,0.066635]
[1765186140941,0.05688,92031.0,92030.0,0.05577]
[1765186142136,0.05688,92026.0,92025.0,0.0666357]
[1765186143638,0.05688,92026.0,92025.0,0.0736357]
[1765186143937,0.05688,92026.0,92025.0,0.0746357]
[1765186144143,0.05688,92026.0,92025.0,0.0726357]
[1765186146728,0.02738,92026.0,92025.0,0.0726357]
[1765186148343,0.05688,92026.0,92025.0,0.0726357]
[1765186155244,0.0677455,92026.0,92025.0,0.0726357]
[1765186155448,0.05688,92026.0,92025.0,0.0726357]
[1765186157053,0.0697147,92034.0,92033.0,0.0683447]
[1765186158251,0.0697147,92034.0,92033.0,0.0703447]
[1765186158654,0.05885,92034.0,92033.0,0.0703447]
[1765186160754,0.05885,92034.0,92033.0,0.0693447]
[1765186161155,0.05985,92034.0,92033.0,0.0693447]
[1765186161450,0.05985,92034.0,92033.0,0.0683447]
[1765186161850,0.05885,92034.0,92033.0,0.0683447]
[1765186162059,0.05985,92034.0,92033.0,0.0683447]
[1765186162554,0.05985,92034.0,92033.0,0.0693447]
[1765186163254,0.11851288,92034.0,92033.0,0.0693447]
[1765186163455,0.05985,92034.0,92033.0,0.0693447]
[1765186163847,0.05985,92034.0,92033.0,0.0683447]
[1765186164047,0.0707146,92034.0,92033.0,0.0683447]
[1765186164248,0.05985,92034.0,92033.0,0.0683447]
[1765186166959,0.05985,92034.0,92033.0,0.05748]
[1765186172369,0.001,92034.0,92033.0,0.05748]
[1765186172558,0.05885724,92035.0,92034.0,0.0683446]
[1765186172867,0.00016296,92035.0,92034.0,0.0683446]
[1765186173266,0.00016296,92035.0,92034.0,0.10709085]
[1765186173456,0.00016296,92035.0,92034.0,0.0683446]
[1765186173857,0.11754428,92049.0,92048.0,0.0856129]
[1765186174157,0.05885,92049.0,92048.0,0.0856129]
[1765186175163,0.06285,92049.0,92048.0,0.0856129]
[1765186175557,0.06285,92049.0,92048.0,0.09848286]
[1765186175860,0.01285,92049.0,92048.0,0.09848286]
[1765186176670,0.0237128,92049.0,92048.0,0.07475]
[1765186179279,0.01285,92049.0,92048.0,0.07475]
[1765186180270,0.01185,92049.0,92048.0,0.07475]
[1765186180863,0.00985,92049.0,92048.0,0.07475]
[1765186181061,0.01185,92049.0,92048.0,0.07475]
[1765186192082,0.07054428,92049.0,92048.0,0.07475]
[1765186193278,0.01185,92049.0,92048.0,0.07475]
[1765186196780,0.003,92049.0,92048.0,0.07475]
[1765186199580,0.002,92049.0,92048.0,0.07475]
[1765186199983,0.0108633,92045.0,92044.0,0.01727]
[1765186200176,0.0108638,92041.0,92036.0,0.04537]
[1765186200376,0.0108642,92037.0,92036.0,0.04537]
[1765186200576,0.0108642,92037.0,92036.0,0.0748]
[1765186201680,0.0108642,92037.0,92036.0,0.04537]
[1765186202277,0.010865,92031.0,92030.0,0.07454]
[1765186202680,0.010865,92031.0,92030.0,0.04511]
[1765186202878,0.0108655,92026.0,92025.0,0.04511]
[1765186203080,0.4945455,92026.0,92025.0,0.04511]
[1765186203583,0.48368,92026.0,92021.0,0.00016305]
[1765186203786,0.010866,92022.0,92021.0,0.00016305]
[1765186204380,0.08892437,92022.0,92021.0,0.00016305]
[1765186205183,0.08892437,92022.0,92021.0,0.05769305]
[1765186205382,0.010866,92022.0,92021.0,0.05769305]
[1765186205885,0.010866,92022.0,92021.0,0.06069305]
[1765186206392,0.344506,92022.0,92021.0,0.06069305]
[1765186207290,0.344506,92022.0,92021.0,0.03126305]
[1765186207586,0.344506,92022.0,92021.0,0.06069305]
[1765186210788,0.33364,92022.0,92021.0,0.06069305]
[1765186210988,0.0108657,92025.0,92024.0,0.05753]
[1765186211190,0.2948657,92025.0,92024.0,0.05753]
[1765186211782,0.2948657,92025.0,92021.0,0.00316305]
[1765186211783,0.010866,92022.0,92021.0,0.00316305]
[1765186212396,0.010866,92022.0,92021.0,0.00016305]
[1765186212592,0.010866,92022.0,92021.0,0.02784305]
[1765186212999,0.010866,92022.0,92021.0,0.03084305]
[1765186213207,0.0108667,92016.0,92015.0,0.04469]
[1765186213398,0.01472,92001.0,92000.0,0.04449]
[1765186213696,0.2943085,92001.0,92000.0,0.04449]
[1765186214087,0.2943085,92001.0,92000.0,0.07413]
[1765186215297,0.2963085,92001.0,92000.0,0.07413]
[1765186216305,0.2983085,92001.0,92000.0,0.07413]
[1765186221691,0.3848285,92001.0,92000.0,0.07413]
[1765186221896,0.50864,92001.0,92000.0,0.07413]
[1765186224601,0.52336,92001.0,92000.0,0.07413]
[1765186224906,0.52336,92001.0,92000.0,0.05732]
[1765186225204,0.52436,92001.0,92000.0,0.05732]
[1765186227310,0.50964,92001.0,92000.0,0.05732]
[1765186227811,0.517,92001.0,92000.0,0.05732]
[1765186228609,0.52436,92001.0,92000.0,0.05732]
[1765186229811,0.005,92001.0,92000.0,0.05732]
[1765186230014,0.50964,92001.0,92000.0,0.05732]
[1765186230318,0.517,92001.0,92000.0,0.05732]
[1765186230518,0.50964,92001.0,92000.0,0.05732]
[1765186230717,0.517,92001.0,92000.0,0.05732]
[1765186231021,0.52436,92001.0,92000.0,0.05732]
[1765186231617,0.52236,92001.0,92000.0,0.05732]
[1765186231920,0.52436,92001.0,92000.0,0.05732]
[1765186234334,0.52436,92001.0,92000.0,0.02768]
[1765186234714,0.52436,92001.0,92000.0,0.05732]
[1765186238424,0.52436,92001.0,92000.0,0.07413]
[1765186239928,0.0255896,91992.0,91991.0,0.05748296]
[1765186241121,0.0265896,91992.0,91991.0,0.05748296]
[1765186241321,0.0275896,91992.0,91991.0,0.05748296]
[1765186243230,0.08599999,91992.0,91991.0,0.00016296]
[1765186243515,0.0275896,91992.0,91991.0,0.00016296]
[1765186244318,0.07090297,91992.0,91991.0,0.00016296]
[1765186246824,0.14896134,91992.0,91991.0,0.00016296]
[1765186247424,0.14896134,91992.0,91975.0,0.01693]
[1765186247425,0.0255914,91976.0,91975.0,0.0758]
[1765186247614,0.5302714,91976.0,91975.0,0.0758]
[1765186248330,0.50468,91976.0,91975.0,0.0758]
[1765186248825,0.51204,91976.0,91975.0,0.0758]
[1765186249014,0.50468,91976.0,91975.0,0.0758]
[1765186249329,0.04262663,91982.0,91981.0,0.05887]
[1765186249631,0.56202663,91982.0,91981.0,0.05887]
[1765186250528,0.54730663,91982.0,91981.0,0.05887]
[1765186250742,0.54730663,91982.0,91981.0,0.06087]
[1765186252219,0.50468,91982.0,91981.0,0.06087]
[1765186253038,0.00016305,91985.0,91984.0,0.05887]
[1765186253329,0.50484305,91985.0,91984.0,0.05887]
[1765186253534,0.00016305,91985.0,91984.0,0.05887]
[1765186253724,0.50484305,91985.0,91984.0,0.05887]
[1765186254436,0.50484305,91985.0,91984.0,0.05987]
[1765186255428,0.51956305,91985.0,91984.0,0.05987]
[1765186257334,0.01488305,91985.0,91984.0,0.0707405]
[1765186257532,0.51956305,91985.0,91984.0,0.0707405]
[1765186257829,0.51956305,91985.0,91984.0,0.05987]
[1765186261338,0.50484305,91985.0,91984.0,0.05987]
[1765186262132,0.00016305,91985.0,91984.0,0.05987]
[1765186263534,3.05e-06,91985.0,91984.0,0.05987]
[1765186264334,0.49488,91993.0,91992.0,0.0659196]
[1765186265766,0.37009222,91993.0,91992.0,0.0659196]
[1765186265932,0.00016305,92002.0,92001.0,0.0659185]
[1765186267138,0.05930305,92002.0,92001.0,0.0659185]
[1765186267434,0.05930305,92002.0,92001.0,0.001]
[1765186268835,0.05914,91993.0,91992.0,0.05521305]
[1765186270138,0.06014,91993.0,91992.0,0.05521305]
[1765186274438,0.06014,91993.0,91992.0,0.00016305]
[1765186276042,0.0766,91970.0,91969.0,0.11332625]
[1765186276237,0.0766,91970.0,91969.0,0.07458]
[1765186276550,0.0766,91980.0,91979.0,0.07458]
[1765186277044,0.09421,91980.0,91979.0,0.07458]
[1765186277341,0.105081,91980.0,91979.0,0.07458]
[1765186277739,0.09421,91980.0,91979.0,0.07458]
[1765186278644,0.105081,91980.0,91979.0,0.07458]
[1765186278942,0.105081,91980.0,91979.0,0.04127]
[1765186279141,0.105081,91980.0,91979.0,0.004]
[1765186279543,0.0766,91971.0,91970.0,0.03743305]
[1765186279754,0.0766,91971.0,91970.0,0.08561525]
[1765186280733,0.0766,91980.0,91979.0,0.03727]
[1765186280941,0.0766,91980.0,91979.0,0.07458]
[1765186281836,0.09421,91980.0,91979.0,0.07558]
[1765186282042,0.09421,91980.0,91979.0,0.001]
[1765186282252,0.09421,91980.0,91979.0,0.003]
[1765186283946,0.09421,91980.0,91979.0,0.07758]
[1765186284536,0.09421,91980.0,91979.0,0.04027]
[1765186284937,0.09421,91980.0,91979.0,0.003]
[1765186287154,0.09421,91980.0,91979.0,0.04027]
[1765186287950,0.09421,91980.0,91979.0,0.07758]
[1765186289458,0.0766,91980.0,91979.0,0.07758]
[1765186290548,0.56144,91983.0,91982.0,0.07458]
[1765186292060,0.56144,91983.0,91982.0,0.07558]
[1765186296752,0.56144,91983.0,91982.0,0.001]
[1765186299460,0.56144,91983.0,91982.0,0.07558]
[1765186299656,0.56144,91983.0,91982.0,0.03827]
[1765186299965,0.56144,91983.0,91982.0,0.001]
[1765186300161,0.56144,91983.0,91982.0,0.03827]
[1765186300360,0.56144,91983.0,91982.0,0.07558]
[1765186309376,0.56144,91983.0,91982.0,0.001]
[1765186309573,0.62005378,91983.0,91982.0,0.001]
[1765186309974,0.56144,91983.0,91982.0,0.001]
[1765186311071,0.06862,91971.0,91970.0,0.06892305]
[1765186312277,0.06862,91971.0,91970.0,0.07092305]
[1765186312779,0.06862,91971.0,91970.0,0.07392305]
[1765186313273,0.06862,91971.0,91970.0,0.10310555]
[1765186314176,0.06862,91971.0,91970.0,0.07392305]
[1765186314673,0.06862,91971.0,91970.0,0.09538305]
[1765186315084,0.03577,91971.0,91970.0,0.09538305]
[1765186315983,0.06862,91971.0,91970.0,0.09538305]
[1765186317585,0.06862,91980.0,91979.0,0.0108711]
[1765186317783,0.06862,91980.0,91979.0,0.0796311]
[1765186318774,0.06862,91980.0,91979.0,0.0806311]
[1765186319384,0.06862,91980.0,91979.0,0.06976]
[1765186319682,0.06862,91980.0,91979.0,0.07076]
[1765186325485,0.50464,91982.0,91981.0,0.06122]
[1765186325486,0.56801,91982.0,91981.0,0.06122]
[1765186325685,0.06337,91982.0,91981.0,0.06122]
[1765186327287,0.50464,91984.0,91983.0,0.06122]
[1765186327690,0.53558,91984.0,91983.0,0.06122]
[1765186328492,0.56801,91984.0,91983.0,0.06122]
[1765186329489,0.50464,91984.0,91983.0,0.06122]
[1765186329993,0.06353305,91989.0,91988.0,0.07209]
[1765186331304,0.06353305,91989.0,91988.0,0.10130063]
[1765186332396,0.06453305,91989.0,91988.0,0.07209]
[1765186335003,0.03210305,91989.0,91988.0,0.07209]
[1765186335192,0.00116305,91989.0,91988.0,0.07209]
[1765186335586,0.03265305,91989.0,91988.0,0.07209]
[1765186336002,0.00116305,91989.0,91988.0,0.07209]
[1765186337900,0.00016305,91989.0,91988.0,0.07209]
[1765186338090,0.00116305,91989.0,91988.0,0.07209]
[1765186338495,0.00016305,91989.0,91988.0,0.07209]
[1765186338701,0.00016305,91989.0,91988.0,0.10130063]
[1765186339392,0.00016305,91989.0,91988.0,0.07209]
[1765186340005,0.0732277,92008.0,92007.0,0.0717078]
[1765186340702,0.06236,92008.0,92007.0,0.08382384]
[1765186341705,0.06536,92008.0,92007.0,0.08382384]
[1765186342203,0.06336,92008.0,92007.0,0.08382384]
[1765186342402,0.06636,92008.0,92007.0,0.08382384]
[1765186343791,0.06336,92008.0,92007.0,0.08382384]
[1765186344003,0.03449,92008.0,92007.0,0.08382384]
[1765186344398,0.03349,92008.0,92007.0,0.08382384]
[1765186344594,0.06436,92008.0,92007.0,0.08382384]
[1765186345200,0.06336,92008.0,92007.0,0.08382384]
[1765186345801,0.06536,92008.0,92007.0,0.08382384]
[1765186346694,0.003,92008.0,92007.0,0.08382384]
[1765186347213,0.001,92008.0,92007.0,0.08382384]
[1765186347507,0.00016305,92017.0,92016.0,0.0717067]
[1765186347697,0.06236,92034.0,92033.0,0.0717047]
[1765186348904,0.06252305,92043.0,92042.0,0.0717037]
[1765186350003,0.06236,92025.0,92024.0,0.06100305]
[1765186350204,0.06436,92034.0,92033.0,0.0717047]
[1765186350519,0.06236,92034.0,92033.0,0.0717047]
[1765186351211,0.06336,92034.0,92033.0,0.0717047]
[1765186351711,0.06236,92034.0,92033.0,0.0717047]
[1765186351908,0.06336,92034.0,92033.0,0.0717047]
[1765186352503,0.06436,92034.0,92033.0,0.0717047]
[1765186353217,0.06336,92034.0,92033.0,0.0108647]
[1765186353417,0.06636,92034.0,92033.0,0.0108647]
[1765186353807,0.06336,92034.0,92033.0,0.0108647]
[1765186354112,0.06636,92034.0,92033.0,0.0414147]
[1765186354319,0.06636,92034.0,92033.0,0.0717047]
[1765186356210,0.06336,92034.0,92033.0,0.0717047]
[1765186356415,0.06536,92034.0,92033.0,0.0717047]
[1765186356813,0.06336,92034.0,92033.0,0.0717047]
[1765186357016,0.06636,92034.0,92033.0,0.0717047]
[1765186357911,0.06236,92025.0,92024.0,0.03071305]
[1765186358113,0.06236,92025.0,92024.0,0.07186885]
[1765186358114,0.0814,92025.0,92024.0,0.07186885]
[1765186359014,0.0814,92025.0,92024.0,0.00016305]
[1765186359920,0.0814,92025.0,92024.0,0.03071305]
[1765186360118,0.0834,92025.0,92024.0,0.06100305]
[1765186361315,0.0834,92025.0,92024.0,0.00016305]
[1765186361622,0.0844,92025.0,92024.0,0.00016305]
[1765186361817,0.0844,92025.0,92024.0,0.03071305]
[1765186362023,0.0844,92025.0,92024.0,0.06100305]
[1765186362524,0.0844,92025.0,92024.0,0.00016305]
[1765186363116,0.05555,92013.0,92012.0,0.0679472]
[1765186363925,0.05555,92022.0,92021.0,0.0679461]
[1765186364622,0.002,92025.0,92024.0,0.0679458]
[1765186365322,0.00016305,92031.0,92030.0,0.0679451]
[1765186368327,0.05571305,92031.0,92030.0,0.0679451]
[1765186370219,0.05671305,92031.0,92030.0,0.0679451]
[1765186371527,0.00116305,92031.0,92030.0,0.0679451]
[1765186373635,0.00016305,92031.0,92030.0,0.0679451]
[1765186374621,0.05571305,92031.0,92030.0,0.0679451]
[1765186375330,0.00016305,92031.0,92030.0,0.0679451]
[1765186375717,0.02730305,92031.0,92030.0,0.0679451]
[1765186377127,0.06657805,92031.0,92030.0,0.0679451]
[1765186377732,0.06657805,92031.0,92030.0,0.05708]
[1765186377935,0.06657805,92031.0,92030.0,0.0679451]
[1765186378129,0.05571305,92031.0,92030.0,0.0679451]
[1765186381033,0.00016305,92031.0,92030.0,0.0679451]
[1765186383737,0.05555,92044.0,92043.0,0.0658835]
[1765186383938,0.08756248,92046.0,92045.0,0.05578]
[1765186384244,0.0588,92051.0,92050.0,0.05578]
[1765186384643,0.02887,92051.0,92050.0,0.05578]
[1765186384843,0.02887,92051.0,92050.0,0.06736604]
[1765186385241,0.14152,92058.0,92057.0,0.05578]
[1765186385544,0.14152,92058.0,92057.0,0.0666419]
[1765186386337,0.14452,92058.0,92057.0,0.0666419]
[1765186386837,0.0588,92054.0,92053.0,0.0666423]
[1765186388747,0.0618,92054.0,92053.0,0.0666423]
[1765186389149,0.03187,92054.0,92053.0,0.0666423]
[1765186389650,0.0618,92054.0,92053.0,0.0666423]
[1765186390034,0.0618,92054.0,92053.0,0.0392423]
[1765186390651,0.0618,92054.0,92053.0,0.0666423]
[1765186391343,0.0618,92054.0,92053.0,0.05578]
[1765186392543,0.05668,92050.0,92049.0,0.0398028]
[1765186392744,0.05668,92050.0,92049.0,0.0687728]
[1765186393760,0.06068,92050.0,92049.0,0.0687728]
[1765186394155,0.004,92050.0,92049.0,0.0687728]
[1765186405577,0.05968,92054.0,92053.0,0.0687724]
[1765186405874,0.05668,92047.0,92042.0,0.04002046]
[1765186406077,0.0675437,92042.0,92041.0,0.00016296]
[1765186406379,0.0675437,92042.0,92041.0,0.05807296]
[1765186406380,0.05668,92042.0,92041.0,0.05807296]
[1765186406770,0.05668,92042.0,92041.0,0.00016296]
[1765186407480,0.05868,92042.0,92041.0,0.00016296]
[1765186408381,0.05868,92042.0,92041.0,0.05807296]
[1765186411276,0.002,92042.0,92041.0,0.05807296]
[1765186412471,0.002,92042.0,92041.0,0.08722982]
[1765186412676,0.003,92042.0,92041.0,0.08722982]
[1765186412983,0.05684296,92060.0,92059.0,0.0687716]
[1765186413280,0.00016296,92060.0,92059.0,0.0687716]
[1765186414071,0.00516296,92060.0,92059.0,0.0687716]
[1765186415185,0.00816296,92060.0,92059.0,0.0687716]
[1765186423890,0.06482296,92060.0,92059.0,0.0687716]
[1765186430495,0.00816296,92060.0,92059.0,0.0687716]
[1765186430693,0.03774296,92060.0,92059.0,0.0687716]
[1765186431081,0.06482296,92060.0,92059.0,0.0687716]
[1765186434287,0.03774296,92060.0,92059.0,0.0687716]
[1765186434497,0.07449,92045.0,92044.0,0.02920529]
[1765186434797,0.05666,92043.0,92042.0,0.0396336]
[1765186435192,0.05666,92043.0,92042.0,0.0687136]
[1765186435400,0.05666,92043.0,92041.0,0.00016296]
[1765186435401,0.0675231,92047.0,92046.0,0.0687132]
[1765186436489,0.05666,92047.0,92046.0,0.0687132]
[1765186437093,0.05766,92047.0,92046.0,0.0687132]
[1765186438695,0.05766,92047.0,92046.0,0.02877]
[1765186438907,0.0679235,92043.0,92042.0,0.0407837]
[1765186439097,0.0679235,92043.0,92042.0,0.0687737]
[1765186439997,0.0689235,92043.0,92042.0,0.0687737]
[1765186440301,0.0689235,92043.0,92042.0,0.0697737]
[1765186440695,0.05806,92043.0,92042.0,0.0697737]
[1765186444200,0.001,92043.0,92042.0,0.0697737]
[1765186446498,0.02935,92043.0,92042.0,0.0697737]
[1765186446701,0.05806,92043.0,92042.0,0.0697737]
[1765186448307,0.02935,92043.0,92042.0,0.0697737]
[1765186449212,0.001,92043.0,92042.0,0.0697737]
[1765186449711,0.05806,92043.0,92042.0,0.0697737]
[1765186452616,0.001,92043.0,92042.0,0.0697737]
[1765186453113,0.001,92043.0,92042.0,0.09897899]
[1765186453315,0.02966,92043.0,92042.0,0.0697737]
[1765186453907,0.001,92043.0,92042.0,0.0697737]
[1765186454908,0.0395224,92053.0,92052.0,0.0766825]
[1765186455103,0.0108621,92056.0,92055.0,0.0398221]
[1765186455309,0.0108621,92056.0,92052.0,0.0194925]
[1765186455310,0.0395217,92059.0,92058.0,0.07401]
[1765186455704,0.00016296,92060.0,92059.0,0.05719]
[1765186456908,0.00416296,92060.0,92059.0,0.05719]
[1765186457919,0.00716296,92060.0,92059.0,0.05719]
[1765186458119,0.02866,92077.0,92076.0,0.0234295]
[1765186458308,0.05842,92077.0,92076.0,0.0806195]
[1765186459521,0.06042,92077.0,92076.0,0.0806195]
[1765186459915,0.06242,92077.0,92076.0,0.0806195]
[1765186462025,0.06242,92077.0,92076.0,0.0680495]
[1765186468520,0.004,92077.0,92076.0,0.0680495]
[1765186468915,0.02882296,92086.0,92085.0,0.0848686]
[1765186469114,0.05858296,92086.0,92085.0,0.0680486]
[1765186470324,0.05858296,92086.0,92085.0,0.0794006]
[1765186471024,0.06058296,92086.0,92085.0,0.0794006]
[1765186472526,0.01783,92082.0,92070.0,0.05719]
[1765186472726,0.05842,92076.0,92075.0,0.0680498]
[1765186473120,0.05842,92076.0,92075.0,0.07926547]
[1765186473318,0.07625,92076.0,92075.0,0.05719]
[1765186473524,0.05842,92068.0,92067.0,0.06821366]
[1765186473827,0.05842,92068.0,92067.0,0.07981103]
[1765186475127,0.05842,92068.0,92067.0,0.08381103]
[1765186477928,0.05842,92068.0,92067.0,0.00416296]
[1765186478127,0.05842,92068.0,92067.0,0.03312296]
[1765186479822,0.05842,92068.0,92067.0,0.06135296]
[1765186481934,0.05842,92080.0,92079.0,0.05719]
[1765186482135,0.05615296,92086.0,92085.0,0.0653786]
[1765186483732,0.05615296,92086.0,92085.0,0.05452]
[1765186484537,0.05915296,92086.0,92085.0,0.05452]
[1765186486335,0.07001146,92086.0,92085.0,0.05452]
[1765186488341,0.05599,92078.0,92077.0,0.0653795]
[1765186489543,0.02775,92078.0,92077.0,0.0653795]
[1765186489736,0.11766477,92086.0,92085.0,0.0653786]
[1765186490330,0.11466477,92086.0,92085.0,0.0653786]
[1765186491338,0.11766477,92086.0,92085.0,0.0653786]
[1765186492740,0.05915296,92086.0,92085.0,0.0653786]
[1765186496245,0.05915296,92086.0,92085.0,0.0827686]
[1765186496440,0.00316296,92086.0,92085.0,0.0827686]
[1765186497044,0.03091296,92086.0,92085.0,0.0827686]
[1765186497243,0.05915296,92086.0,92085.0,0.0827686]
[1765186498442,0.00316296,92086.0,92085.0,0.0827686]
[1765186498845,0.00316296,92086.0,92085.0,0.11197389]
[1765186499045,0.00316296,92086.0,92085.0,0.11184497]
[1765186499545,0.06273296,92086.0,92085.0,0.11184497]
[1765186499746,0.03291296,92086.0,92085.0,0.11184497]
[1765186500348,0.06273296,92086.0,92085.0,0.11184497]
[1765186501539,0.00316296,92086.0,92085.0,0.10468497]
[1765186501743,0.06273296,92086.0,92085.0,0.0756086]
[1765186504748,0.00316296,92086.0,92085.0,0.0756086]
[1765186506251,0.03291296,92086.0,92085.0,0.0756086]
[1765186507848,0.00316296,92086.0,92085.0,0.0756086]
[1765186508252,0.05957,92111.0,92110.0,0.0688956]
[1765186508452,0.05957,92111.0,92110.0,0.0108556]
[1765186508656,0.0704261,92107.0,92106.0,0.010856]
[1765186509038,0.0704261,92107.0,92106.0,0.040696]
[1765186509248,0.0704261,92107.0,92106.0,0.068896]
[1765186509746,0.0704261,92107.0,92106.0,0.05804]
[1765186510144,0.05957,92107.0,92106.0,0.0688961]
[1765186510444,0.05957,92107.0,92106.0,0.0698961]
[1765186511344,0.06057,92107.0,92106.0,0.0698961]
[1765186513255,0.001,92107.0,92106.0,0.0698961]
[1765186515051,0.05679,92107.0,92106.0,0.0698961]
[1765186518760,0.05679,92107.0,92106.0,0.001]
[1765186521362,0.066647,92098.0,92097.0,0.00016287]
[1765186522752,0.066647,92098.0,92097.0,0.00316287]
[1765186523060,0.05579,92098.0,92097.0,0.00316287]
[1765186524753,0.05579,92098.0,92097.0,0.03131287]
[1765186526356,0.05579,92098.0,92097.0,0.03031287]
[1765186527463,0.05579,92098.0,92097.0,0.00216287]
[1765186528160,0.05579,92098.0,92097.0,0.03031287]
[1765186529163,0.05579,92098.0,92097.0,0.00216287]
[1765186530765,0.05579,92098.0,92097.0,0.00016287]
[1765186531058,0.05579,92098.0,92097.0,0.00216287]
[1765186532767,0.07333,92085.0,92084.0,0.02815]
[1765186533061,0.05579,92082.0,92081.0,0.039009]
[1765186533256,0.05579,92082.0,92081.0,0.066429]
[1765186533855,0.05579,92082.0,92081.0,0.05557]
[1765186534056,0.01754,92075.0,92074.0,0.0664298]
[1765186534266,0.05579,92073.0,92072.0,0.00016287]
[1765186534573,0.05579,92073.0,92072.0,0.02831287]
[1765186534760,0.05579,92073.0,92072.0,0.05573287]
[1765186535757,0.05579,92073.0,92072.0,0.00016287]
[1765186536867,0.05579,92073.0,92072.0,0.00316287]
[1765186537263,0.05579,92073.0,92072.0,0.00116287]
[1765186537465,0.05579,92073.0,92072.0,0.00416287]
[1765186537969,0.05579,92073.0,92072.0,0.00316287]
[1765186538762,0.05579,92073.0,92072.0,0.00016287]
[1765186538967,0.05579,92073.0,92072.0,0.00216287]
[1765186539461,0.05579,92057.0,92056.0,0.0390119]
[1765186539670,0.05579,92057.0,92056.0,0.0664319]
[1765186540859,0.05579,92057.0,92056.0,0.07771069]
[1765186541260,0.05579,92057.0,92056.0,0.07871069]
[1765186541673,0.05579,92057.0,92056.0,0.08271069]
[1765186542469,0.05685287,92066.0,92065.0,0.05839]
[1765186543662,0.05785287,92066.0,92065.0,0.05839]
[1765186544766,0.05685287,92066.0,92065.0,0.05939]
[1765186544968,0.00016287,92066.0,92065.0,0.05939]
[1765186545466,0.05685287,92066.0,92065.0,0.05939]
[1765186545958,0.05685287,92066.0,92065.0,0.06239]
[1765186548874,0.05685287,92066.0,92065.0,0.004]
[1765186549477,0.05685287,92066.0,92065.0,0.001]
[1765186549774,0.05669,92057.0,92056.0,0.06966879]
[1765186549974,0.05669,92057.0,92056.0,0.05839]
[1765186551567,0.05669,92057.0,92056.0,0.06959212]
[1765186551767,0.05669,92057.0,92056.0,0.07259212]
[1765186552476,0.05669,92057.0,92056.0,0.07359212]
[1765186553773,0.05669,92057.0,92056.0,0.06239]
[1765186554076,0.05669,92057.0,92056.0,0.03341]
[1765186554267,0.05669,92057.0,92056.0,0.06239]
[1765186554668,0.05669,92057.0,92056.0,0.05939]
[1765186554868,0.05669,92057.0,92056.0,0.06239]
[1765186555483,0.05669,92057.0,92056.0,0.06139]
[1765186555678,0.05669,92057.0,92056.0,0.03241]
[1765186556373,0.05669,92057.0,92056.0,0.003]
[1765186556874,0.05669,92057.0,92056.0,0.002]
[1765186557267,0.0675529,92048.0,92047.0,0.00016287]
[1765186557981,0.0675529,92048.0,92047.0,0.02957287]
[1765186558570,0.0675529,92048.0,92047.0,0.03457287]
[1765186559081,0.0675529,92048.0,92047.0,0.00516287]
[1765186559680,0.0675529,92048.0,92047.0,0.03279287]
[1765186560077,0.0675529,92048.0,92047.0,0.06095287]
[1765186560778,0.05669,92048.0,92047.0,0.06095287]
[1765186565186,0.0669221,92056.0,92055.0,0.05579]
[1765186566472,0.05606,92056.0,92055.0,0.05579]
[1765186566673,0.05606,92063.0,92060.0,0.01647]
[1765186566973,0.05606,92063.0,92062.0,0.08490843]
[1765186567378,0.05606,92063.0,92062.0,0.05579]
[1765186568180,0.05606,92063.0,92062.0,0.05879]
[1765186568682,0.0669212,92063.0,92062.0,0.08790491]
[1765186569078,0.03934367,92066.0,92065.0,0.05579]
[1765186569694,0.06708367,92066.0,92065.0,0.05579]
[1765186570888,0.06708367,92066.0,92065.0,0.05779]
[1765186571888,0.06708367,92066.0,92065.0,0.05879]
[1765186573386,0.06708367,92066.0,92065.0,0.05579]
[1765186573590,0.06708367,92066.0,92065.0,0.05879]
[1765186574587,0.06708367,92066.0,92065.0,0.05679]
[1765186574783,0.06708367,92066.0,92065.0,0.05879]
[1765186575380,0.00016287,92066.0,92065.0,0.05879]
[1765186575890,0.02801287,92066.0,92065.0,0.05879]
[1765186576889,0.00016287,92066.0,92065.0,0.05879]
[1765186577292,0.02801287,92066.0,92065.0,0.05879]
[1765186577492,0.00016287,92066.0,92065.0,0.05879]
[1765186578389,0.00016287,92066.0,92065.0,0.07521]
[1765186579889,0.00016287,92066.0,92065.0,0.10432487]
[1765186580090,0.00016287,92066.0,92065.0,0.07521]
[1765186580690,0.05518287,92066.0,92065.0,0.07521]
[1765186581281,0.02801287,92066.0,92065.0,0.07521]
[1765186581687,0.00016287,92066.0,92065.0,0.07521]